bitfinex/quotes_ETHUSD_20250403
["timestamp","ask_amount","ask_price","bid_price","bid_amount"]
[1743684375405,0.55,1773.1,1772.2,5.6427]
[1743684375606,1.3785,1773.3,1772.8,5.64051]
[1743684375802,1.4317158,1773.3,1772.3,5.64226]
[1743684376027,5.64112,1772.7,1772.2,5.6427]
[1743684376208,5.6943358,1772.7,1772.2,5.6427]
[1743684376418,0.0532158,1772.7,1772.3,0.05641668]
[1743684376614,5.6408,1772.8,1772.2,5.6427]
[1743684376814,5.6408,1772.8,1772.1,5.69302]
[1743684376815,11.28253,1772.7,1772.1,5.6928]
[1743684377129,5.64115,1772.7,1772.1,11.3357]
[1743684377329,0.0532158,1772.6,1772.1,5.6928]
[1743684377636,0.0532158,1772.7,1772.2,5.64254]
[1743684378151,0.0532158,1772.7,1772.3,5.69878635]
[1743684378310,11.28182,1772.8,1772.3,0.05641635]
[1743684378516,5.64198,1772.5,1772.1,0.05]
[1743684378848,0.0532158,1772.7,1772.1,0.05]
[1743684379145,5.6427,1772.2,1772.1,0.05]
[1743684379513,5.64462,1771.6,1771.3,0.55]
[1743684379851,5.64522,1771.5,1771.3,0.55]
[1743684380006,11.3436658,1771.5,1771.3,0.55]
[1743684380357,5.64522,1771.5,1771.3,0.55]
[1743684380537,5.64525,1771.4,1771.3,0.55]
[1743684380740,7.0530658,1771.4,1771.3,0.55]
[1743684381056,3.0,1771.0,1770.1,0.05]
[1743684381342,5.64907,1770.2,1770.1,0.05]
[1743684381546,5.7022858,1770.2,1770.1,0.05]
[1743684381909,0.0532158,1770.2,1770.1,0.05]
[1743684382109,5.7022858,1770.2,1770.1,0.05]
[1743684382908,8.64907,1770.2,1770.1,0.05]
[1743684383113,8.7022858,1770.2,1770.1,0.05]
[1743684383957,3.0,1770.0,1769.1,0.05]
[1743684384258,5.651,1769.6,1769.1,0.05]
[1743684384461,0.0532158,1769.5,1769.1,0.05]
[1743684385098,5.65152,1769.5,1769.1,0.05]
[1743684385388,0.0532158,1769.6,1769.1,0.05]
[1743684385389,0.0532158,1769.4,1769.1,0.05]
[1743684385554,5.7045658,1769.5,1769.1,0.05]
[1743684385984,0.0532158,1769.5,1769.1,0.05]
[1743684386164,0.0532158,1769.7,1769.3,5.65195]
[1743684386487,0.0532158,1770.0,1769.5,5.65113]
[1743684386683,0.0532158,1770.0,1769.6,5.65089]
[1743684386898,1.3518,1770.1,1769.7,0.05650512]
[1743684387247,7.00123,1770.1,1769.5,5.65131]
[1743684387455,0.0532158,1770.0,1769.3,5.65174]
[1743684387773,0.0532158,1770.0,1769.1,5.70253]
[1743684387962,5.65074,1769.7,1769.1,0.05]
[1743684388163,5.6515,1769.5,1769.1,0.05]
[1743684388362,0.0532158,1769.4,1769.1,0.05]
[1743684388564,7.07607,1769.2,1769.1,0.05]
[1743684388752,7.1292858,1769.2,1769.1,0.05]
[1743684388953,10.1292858,1769.2,1769.1,0.05]
[1743684389498,5.65507,1768.4,1768.1,0.05]
[1743684389657,0.0532158,1768.3,1768.1,0.05]
[1743684390099,0.0532158,1768.9,1768.1,0.05]
[1743684390304,3.0532158,1768.9,1768.2,0.05654819]
[1743684390454,5.65355,1768.8,1768.1,0.05]
[1743684390651,5.7071258,1768.7,1768.1,5.70575]
[1743684390866,5.65506,1768.4,1768.1,0.05]
[1743684391066,5.65445,1768.6,1768.1,0.05]
[1743684391264,5.65546,1768.2,1768.1,0.05]
[1743684391480,5.7086758,1768.2,1767.8,0.55]
[1743684391795,5.65866,1767.2,1767.1,0.05]
[1743684392089,4.4867,1767.8,1767.1,0.05]
[1743684392090,5.65837,1767.3,1767.1,0.05]
[1743684392252,0.0532158,1767.2,1767.1,0.05]
[1743684392457,5.65849,1767.3,1767.1,0.05]
[1743684392657,0.0532158,1767.6,1767.1,0.05]
[1743684392896,5.7106058,1767.6,1767.1,0.05]
[1743684393061,0.0532158,1767.5,1767.1,0.05]
[1743684393391,0.0532158,1767.5,1767.2,5.65864]
[1743684393593,5.65616,1768.0,1767.4,5.65777]
[1743684393779,0.0532158,1768.0,1767.5,5.71426962]
[1743684394087,7.13913,1768.7,1768.1,5.65563]
[1743684394290,0.0532158,1768.6,1768.1,5.71218192]
[1743684394493,7.1391,1768.7,1768.2,0.05655192]
[1743684394494,0.0532158,1768.7,1768.2,0.05655192]
[1743684394700,0.0532158,1769.0,1767.6,40.682]
[1743684394999,5.65451,1768.5,1767.9,5.65618]
[1743684395196,0.0532158,1769.0,1768.1,5.65565]
[1743684395197,5.65369,1768.8,1768.1,5.65565]
[1743684395397,5.7065858,1768.9,1768.2,5.65522]
[1743684395711,1.4851,1769.2,1768.4,5.65482]
[1743684395869,1.4851,1769.2,1768.6,5.65402]
[1743684396211,0.0532158,1769.3,1768.8,5.6535]
[1743684396499,5.65549,1768.2,1767.6,7.09302]
[1743684396661,5.65503,1768.4,1767.6,7.09318]
[1743684396865,5.7084058,1768.3,1767.6,7.09318]
[1743684397061,0.0532158,1768.3,1767.3,0.05655928]
[1743684397270,0.0532158,1768.3,1766.8,40.682]
[1743684397271,5.65707,1767.7,1767.0,5.65914]
[1743684397511,0.0532158,1768.0,1767.2,0.05657463]
[1743684397693,5.7092258,1768.1,1767.5,5.65747]
[1743684397866,5.7092258,1768.1,1767.5,5.6577]
[1743684398213,5.65636,1768.0,1767.4,5.6579]
[1743684398370,5.65616,1768.0,1767.4,5.65779]
[1743684398570,11.3657858,1768.0,1767.4,5.65779]
[1743684398767,5.0359,1768.3,1767.1,0.05]
[1743684398967,8.65866,1767.2,1767.1,0.05]
[1743684399270,8.7118758,1767.2,1767.1,1e-05]
[1743684399482,0.0532158,1767.2,1767.1,1e-05]
[1743684399660,5.65762,1767.6,1767.1,1e-05]
[1743684399869,1.4356,1767.9,1767.1,1e-05]
[1743684400104,8.65898,1767.1,1766.0,1.4235]
[1743684400267,1.4798,1767.2,1766.0,1.4235]
[1743684400467,5.6595,1767.0,1766.4,5.66093]
[1743684400789,5.65967,1766.9,1766.3,5.6615]
[1743684401117,1.4798,1767.2,1766.1,0.05]
[1743684401261,5.66071,1766.6,1766.1,0.05]
[1743684401467,5.66147,1766.4,1766.1,0.05]
[1743684401668,1.4798,1767.2,1766.1,0.05]
[1743684401900,5.66082,1766.6,1766.1,0.05]
[1743684402207,1.4798,1767.2,1766.1,5.71215]
[1743684402499,7.13872,1767.2,1766.6,5.6604]
[1743684402805,5.65962,1766.9,1766.1,0.05]
[1743684402990,1.4798,1767.2,1766.2,5.66186]
[1743684403192,3.0,1766.8,1766.1,0.05]
[1743684403366,3.0,1766.7,1766.1,0.05]
[1743684403565,5.66126,1766.4,1766.1,0.05]
[1743684403772,5.65995,1766.8,1766.2,5.66174]
[1743684403989,3.0,1767.2,1766.1,0.05]
[1743684404202,5.66166,1766.3,1766.1,0.05]
[1743684404405,5.66013,1766.8,1766.1,0.05]
[1743684404406,5.66187,1766.2,1766.1,0.05]
[1743684404582,8.66065,1766.6,1766.1,0.05]
[1743684404898,1.4975,1767.1,1766.1,5.71207]
[1743684405119,5.6593,1767.0,1766.1,0.05]
[1743684405414,3.0,1766.9,1766.1,0.05]
[1743684405702,5.66139,1766.4,1766.1,0.05]
[1743684405888,5.66039,1766.7,1766.1,0.05]
[1743684406197,3.0,1766.8,1766.1,0.05]
[1743684406372,0.55,1767.0,1766.1,0.05]
[1743684406373,5.66033,1766.7,1766.1,0.05]
[1743684406573,5.65995,1766.8,1766.2,5.66175]
[1743684406768,5.66008,1766.8,1766.3,5.66141]
[1743684406994,5.66028,1766.7,1766.2,5.66183]
[1743684407169,1.4975,1767.1,1766.2,5.66187]
[1743684407371,1.4975,1767.1,1766.3,5.66137]
[1743684407596,5.65964,1766.9,1766.3,5.66136]
[1743684407767,1.4975,1767.1,1766.1,0.05]
[1743684407768,7.1566,1767.1,1766.1,0.05]
[1743684407969,5.65986,1766.9,1766.3,5.66142]
[1743684408179,5.6593,1767.0,1766.1,5.71204]
[1743684408400,5.66059,1766.6,1766.1,0.05]
[1743684408598,5.66024,1766.8,1766.2,5.66172]
[1743684408805,5.66039,1766.7,1766.1,5.71211]
[1743684409103,5.65944,1767.0,1766.1,0.05]
[1743684409305,5.66015,1766.8,1766.2,5.66167]
[1743684409510,5.66042,1766.7,1766.2,5.66167]
[1743684409691,1.4975,1767.1,1766.4,5.66111]
[1743684409892,7.15649,1767.1,1766.1,5.71218]
[1743684410095,7.15649,1767.1,1766.5,5.66066]
[1743684410297,7.15649,1767.1,1766.4,5.6612]
[1743684410298,1.4975,1767.1,1766.4,5.6612]
[1743684410609,11.32088,1766.7,1766.1,5.71218]
[1743684410794,5.66061,1766.6,1766.1,5.71207]
[1743684411196,11.32097,1766.7,1766.2,5.66166]
[1743684411399,11.32097,1766.7,1766.1,5.71215]
[1743684411400,5.66071,1766.6,1766.1,5.71207]
[1743684411599,11.32155,1766.6,1766.1,5.71207]
[1743684411794,3.0,1767.0,1766.1,0.05]
[1743684412000,3.0,1767.0,1766.2,5.6616]
[1743684412203,3.0,1766.7,1766.1,0.05]
[1743684412513,3.0,1766.7,1765.0,0.005]
[1743684412514,5.66462,1765.4,1765.0,0.005]
[1743684412691,3.0,1765.4,1765.0,0.005]
[1743684412888,5.66448,1765.4,1765.0,0.005]
[1743684413196,5.66489,1765.3,1765.0,0.005]
[1743684413384,3.0,1765.7,1765.0,0.005]
[1743684413385,5.66412,1765.5,1765.0,0.005]
[1743684413576,5.66429,1765.5,1765.0,0.005]
[1743684413782,1.5023,1765.8,1765.0,0.005]
[1743684414111,4.5023,1765.8,1765.0,0.005]
[1743684414321,11.3287,1765.5,1765.0,0.005]
[1743684414520,5.66428,1765.5,1765.0,5.6706]
[1743684414680,11.32861,1765.5,1765.0,0.005]
[1743684414878,5.66487,1765.3,1765.0,0.005]
[1743684415141,5.66254,1766.0,1765.4,5.66414]
[1743684415352,5.66254,1766.0,1765.0,0.005]
[1743684415353,5.66353,1765.7,1765.1,5.66532]
[1743684415639,5.66349,1765.7,1765.1,1e-05]
[1743684415849,5.66434,1765.5,1765.1,1e-05]
[1743684416024,5.66494,1765.3,1765.1,1e-05]
[1743684416327,5.66328,1765.8,1765.1,1e-05]
[1743684416531,5.66348,1765.7,1765.2,5.66494]
[1743684416829,8.66224,1766.1,1765.1,1e-05]
[1743684417029,5.66508,1765.2,1765.1,1e-05]
[1743684417927,5.66488,1765.3,1765.1,1e-05]
[1743684418323,5.66508,1765.2,1765.1,1e-05]
[1743684418500,5.66412,1765.5,1765.1,1e-05]
[1743684418699,3.0,1765.6,1765.1,1e-05]
[1743684419023,5.6645,1765.4,1765.1,1e-05]
[1743684419247,5.66508,1765.2,1765.1,1e-05]
[1743684419611,5.66452,1765.4,1765.1,1e-05]
[1743684419839,5.66411,1765.5,1765.1,1e-05]
[1743684420010,5.66508,1765.2,1765.1,1e-05]
[1743684420231,1.4927,1765.7,1765.1,1e-05]
[1743684420415,5.66438,1765.5,1765.1,1e-05]
[1743684420714,5.66456,1765.4,1765.1,1e-05]
[1743684420910,5.6639,1765.6,1765.1,1e-05]
[1743684421117,5.66445,1765.4,1765.1,1e-05]
[1743684421335,5.66412,1765.5,1765.1,1e-05]
[1743684421527,5.66444,1765.4,1765.1,1e-05]
[1743684421729,5.66451,1765.4,1765.1,1e-05]
[1743684421929,5.6648,1765.3,1765.1,1e-05]
[1743684422128,8.66508,1765.2,1764.6,0.005]
[1743684422346,8.66668,1764.7,1764.6,1e-05]
[1743684422849,8.66668,1764.7,1763.1,0.05]
[1743684422850,5.66861,1764.1,1763.1,0.05]
[1743684423081,5.66936,1763.9,1763.1,0.05]
[1743684423220,0.55,1764.1,1763.1,0.05]
[1743684423535,5.66957,1763.8,1763.1,0.05]
[1743684423734,5.67136,1763.3,1763.1,0.05]
[1743684424137,0.55,1764.6,1763.2,7.1334]
[1743684424342,7.08249,1764.8,1763.9,5.66924]
[1743684424531,5.66384,1765.6,1763.9,5.66924]
[1743684424532,7.0605,1765.2,1764.0,1.4021]
[1743684424851,5.66253,1766.0,1765.3,5.66449]
[1743684425016,1.4882,1766.1,1764.8,1.3843]
[1743684425214,5.6627,1766.0,1765.4,5.66437]
[1743684425422,5.6627,1766.0,1764.1,6.2184]
[1743684425423,1.5045,1763.5,1763.1,0.05]
[1743684425644,2.336025,1763.4,1763.1,0.05]
[1743684425813,5.67124,1763.3,1763.1,0.05]
[1743684426013,3.49246142,1763.2,1763.1,0.05]
[1743684426218,3.0,1763.9,1763.1,0.05]
[1743684426417,7.06708,1764.0,1763.1,0.05]
[1743684426418,5.67113,1763.4,1763.1,0.05]
[1743684426614,5.66992,1763.7,1763.1,0.05]
[1743684426615,5.6715,1763.2,1763.1,0.05]
[1743684426818,7.0696,1763.2,1763.1,0.05]
[1743684427247,10.0696,1763.2,1763.1,0.05]
[1743684427449,7.0696,1763.2,1763.1,0.05]
[1743684427617,5.6735,1762.6,1762.1,0.05]
[1743684427818,4.3981,1763.2,1762.2,5.67453]
[1743684427819,5.67247,1762.9,1762.2,5.67453]
[1743684428051,5.67334,1762.7,1762.1,0.05]
[1743684428235,5.67347,1762.6,1762.1,0.05]
[1743684428431,5.67472,1762.2,1762.1,0.05]
[1743684428636,5.67472,1762.2,1760.8,5.44887195]
[1743684428637,0.55,1762.2,1760.8,5.44887195]
[1743684428818,5.67521,1762.1,1760.8,5.44887195]
[1743684429024,5.67584,1761.9,1761.2,1.4444]
[1743684429354,5.6772,1761.5,1761.1,0.05]
[1743684429654,5.67626,1761.8,1761.1,0.05]
[1743684429950,1.4847,1762.8,1761.2,1.51266729]
[1743684430176,5.67558,1762.0,1761.3,5.67761]
[1743684430478,5.67538,1762.0,1761.4,5.67715]
[1743684430678,1.438,1762.4,1761.4,0.05676466]
[1743684430850,0.0532158,1762.3,1761.7,5.67632]
[1743684431049,0.0532158,1762.3,1761.1,1.5318]
[1743684431244,5.6765,1761.7,1761.1,1.5318]
[1743684431453,5.7300358,1761.6,1761.1,1.5318]
[1743684431803,5.67794,1761.2,1761.1,0.05]
[1743684431965,5.67771,1761.3,1761.1,0.05]
[1743684432147,0.0532158,1761.2,1761.1,0.05]
[1743684432344,5.67661,1761.7,1761.1,0.21083731]
[1743684432579,0.0532158,1761.6,1761.1,0.21083731]
[1743684432779,5.67631,1761.8,1761.1,0.21083731]
[1743684432980,5.67723,1761.5,1761.1,0.05]
[1743684433277,5.7296558,1761.7,1761.2,0.16083731]
[1743684433580,5.67794,1761.2,1761.1,0.05]
[1743684433748,5.7311558,1761.2,1761.1,0.05]
[1743684434086,5.68149,1760.1,1760.0,141.764663]
[1743684434379,5.68149,1760.1,1758.6,0.29383117]
[1743684434380,5.68601,1758.7,1758.6,0.29383117]
[1743684434580,5.68601,1758.7,1758.2,9.84621709]
[1743684434581,0.0532158,1758.7,1758.2,9.84621709]
[1743684434803,0.0482158,1759.2,1758.3,5.68711]
[1743684434964,0.10198874,1759.2,1758.2,4.15862709]
[1743684435197,3.0482158,1759.9,1759.0,5.68503]
[1743684435509,1.5243,1759.8,1758.5,0.05683598]
[1743684435731,0.0482158,1759.7,1758.3,0.0568701]
[1743684435908,10.12521,1758.3,1758.1,7.09e-06]
[1743684436081,10.12521,1758.3,1757.5,5.76340636]
[1743684436082,1.4379,1758.0,1757.5,5.76340636]
[1743684436275,1.4379,1758.0,1757.5,6.36e-06]
[1743684436276,8.68957,1757.6,1757.5,6.36e-06]
[1743684436522,5.69061,1757.3,1757.1,9.5e-07]
[1743684436674,0.0482158,1757.2,1757.1,9.5e-07]
[1743684436875,1.4379,1757.5,1757.1,9.5e-07]
[1743684437113,3.0,1758.6,1757.1,9.5e-07]
[1743684437319,0.55,1758.3,1757.1,9.5e-07]
[1743684437481,0.55,1758.1,1757.1,9.5e-07]
[1743684437681,0.10198874,1758.0,1757.1,9.5e-07]
[1743684437899,0.10198874,1758.0,1757.2,5.69084]
[1743684438114,8.74e-06,1758.0,1757.9,5.6886]
[1743684438432,5.68256,1759.8,1758.8,5.6855]
[1743684438641,0.05,1759.9,1759.3,5.68381]
[1743684438927,5.9734979,1760.8,1759.8,7.06338262]
[1743684438928,0.2940879,1760.8,1759.8,7.06338262]
[1743684439135,0.2940879,1760.8,1759.9,0.05681336]
[1743684439283,0.2940879,1760.8,1759.9,5.68214]
[1743684439479,0.2940879,1760.8,1758.7,1.493]
[1743684439745,5.68241,1759.9,1758.3,1.493]
[1743684439881,0.2940879,1760.8,1758.6,5.68605]
[1743684440085,1.4828,1760.7,1760.1,5.68119]
[1743684440280,5.6803,1760.5,1760.2,0.16609139]
[1743684440504,1.4828,1760.3,1758.8,1.493]
[1743684440779,1.4828,1760.3,1758.9,0.16609139]
[1743684441081,0.05,1760.9,1760.1,5.68121]
[1743684441283,0.05,1760.9,1760.2,0.16602664]
[1743684441808,42.3726,1760.8,1758.7,1.422]
[1743684441983,1.4966,1760.0,1759.1,5.68466]
[1743684442325,0.55,1759.8,1759.2,0.12150997]
[1743684442536,3.0,1759.6,1758.7,1.422]
[1743684442718,5.68524,1759.0,1758.8,0.12150997]
[1743684442886,8.68537,1758.9,1758.8,0.12150997]
[1743684443213,1.4571,1759.0,1758.1,5.73783]
[1743684443414,0.568,1759.6,1758.2,7.08351]
[1743684443415,1.4527,1759.4,1758.2,7.08351]
[1743684443627,4.4527,1759.4,1758.5,5.68648]
[1743684443919,3.0,1759.3,1758.6,0.13005005]
[1743684444215,1.4527,1759.4,1758.5,11.37294]
[1743684444415,1.4527,1759.4,1758.2,1.3959]
[1743684444416,1.4527,1759.4,1758.3,5.68707]
[1743684444590,6.23443,1759.2,1758.6,0.13005005]
[1743684444909,5.68432,1759.3,1758.3,5.68716]
[1743684445117,3.0,1759.2,1758.4,5.82777167]
[1743684445420,1.4527,1759.4,1758.4,0.19765605]
[1743684445596,7.73231,1759.9,1758.5,5.68666]
[1743684445792,5.68249,1759.8,1758.8,5.68547]
[1743684445992,1.5,1759.9,1758.9,0.05684883]
[1743684446194,1.5,1759.9,1759.0,5.68476]
[1743684446421,1.4874,1760.3,1759.2,5.6844]
[1743684446718,2.90330831,1761.9,1759.6,1.4654]
[1743684446719,5.67812,1761.2,1759.6,1.4654]
[1743684446927,7.16495,1761.4,1760.3,5.68063]
[1743684447215,1.4874,1761.4,1760.7,5.6794]
[1743684447517,1e-05,1760.9,1760.8,8.73602195]
[1743684447696,0.05,1761.9,1761.8,5.67601]
[1743684447892,0.05,1761.9,1761.8,0.10794374]
[1743684448207,5.67715,1761.5,1760.8,1.413]
[1743684448386,5.67817,1761.2,1760.3,7.09363]
[1743684448714,5.67779,1761.3,1760.4,5.68046]
[1743684448914,5.67834,1761.1,1760.3,1.413]
[1743684449117,5.67843,1761.1,1760.3,1.413]
[1743684449617,7.05677,1761.2,1760.3,7.09368]
[1743684449829,5.67833,1761.1,1760.2,5.68101]
[1743684449989,7.05676,1761.2,1760.2,5.68101]
[1743684450190,1.4651,1761.7,1760.5,1.4694]
[1743684450384,5.67693,1761.6,1760.6,5.67973]
[1743684450620,5.67693,1761.6,1760.5,1.4694]
[1743684450621,5.6773,1761.4,1760.5,1.4694]
[1743684450784,5.67823,1761.2,1760.2,5.68096]
[1743684450992,5.6802,1760.5,1759.6,7.18602]
[1743684451185,5.6811,1760.3,1759.6,1.5031]
[1743684451418,0.55,1760.6,1759.1,1.5531]
[1743684451621,7.17307,1760.2,1759.1,0.05]
[1743684451922,5.6841,1759.3,1759.1,0.05]
[1743684452109,5.68271,1759.8,1759.1,0.05]
[1743684452447,1.3989,1760.9,1760.0,5.68175]
[1743684452651,1.3989,1761.5,1760.4,5.68052]
[1743684452920,0.05,1761.9,1761.4,5.67715]
[1743684453282,0.05,1761.9,1761.5,0.16988028]
[1743684453508,0.05,1761.9,1761.1,5.67823]
[1743684453806,0.05,1761.9,1761.2,0.1102734]
[1743684454006,0.05,1761.9,1761.8,7.07571]
[1743684454209,0.05,1762.9,1762.4,5.67382]
[1743684454409,0.05,1762.9,1762.3,5.6744]
[1743684454623,1.4585,1762.8,1761.3,1.5158]
[1743684454807,5.67462,1762.3,1761.4,5.67715]
[1743684455009,5.67488,1762.2,1761.3,7.19341]
[1743684455199,5.67436,1762.4,1761.4,5.67727]
[1743684455396,5.67436,1762.4,1761.5,0.05676256]
[1743684455617,5.67458,1762.3,1761.3,7.19318]
[1743684455839,8.67346,1762.6,1761.3,7.19318]
[1743684456002,5.67585,1761.9,1761.3,1.5158]
[1743684456206,5.67655,1761.7,1760.9,1.39]
[1743684456565,1.4568,1762.0,1760.9,1.44678021]
[1743684456696,1.4568,1762.0,1761.2,5.67779]
[1743684456883,5.67576,1761.9,1761.1,5.6781]
[1743684457112,5.67721,1761.5,1760.9,1.39]
[1743684457297,5.67649,1761.7,1760.8,5.67899]
[1743684457619,5.67736,1761.4,1760.6,5.67987]
[1743684457921,5.67668,1761.6,1760.8,5.67903]
[1743684458121,11.35306,1761.7,1760.8,5.67903]
[1743684458291,7.10176,1762.6,1760.9,1.516]
[1743684458490,5.67386,1762.5,1761.6,11.35299]
[1743684458691,1.4283,1762.6,1761.8,5.67576]
[1743684458921,1.4283,1762.6,1761.9,0.05675036]
[1743684459091,1.4283,1762.6,1761.8,5.67581]
[1743684459290,5.72255,1762.9,1761.7,1.5072]
[1743684459517,0.05,1762.9,1761.7,1.5072]
[1743684459720,5.67367,1762.6,1761.7,1.5072]
[1743684459947,5.67313,1762.7,1761.8,5.6758]
[1743684460240,5.67313,1762.7,1761.9,5.67562]
[1743684460433,0.05,1762.9,1761.7,1.5072]
[1743684460595,5.67422,1762.4,1761.7,1.5072]
[1743684460790,5.67346,1762.6,1761.7,1.5072]
[1743684461023,5.72258,1762.9,1762.1,5.67483]
[1743684461194,5.67361,1762.6,1761.7,7.18341]
[1743684461400,5.67318,1762.7,1761.8,5.67599]
[1743684461618,5.72249,1762.9,1762.0,5.67513]
[1743684461806,0.05,1762.9,1762.0,5.67515]
[1743684462001,5.67279,1762.8,1761.7,1.5072]
[1743684462205,5.67373,1762.6,1761.7,1.5072]
[1743684462447,5.72273,1762.9,1761.7,1.5072]
[1743684462448,5.67492,1762.2,1761.7,1.5072]
[1743684462743,5.67441,1762.3,1761.7,1.5072]
[1743684462947,5.67441,1762.3,1761.1,46.55015]
[1743684462948,5.67587,1761.9,1761.3,1.6025]
[1743684463093,5.67587,1761.9,1760.7,1.6025]
[1743684463094,5.67912,1760.9,1760.7,1.6025]
[1743684463289,5.67718,1761.5,1760.3,7.28334]
[1743684463517,5.67742,1761.4,1760.6,11.35974]
[1743684463723,5.67746,1761.4,1760.4,5.68052]
[1743684463910,5.67601,1761.8,1760.3,6.417434]
[1743684464111,5.67727,1761.5,1760.7,5.67947]
[1743684464716,5.67727,1761.5,1760.7,5.67936]
[1743684464894,5.67839,1761.1,1760.3,7.2832]
[1743684465093,3.0,1761.5,1760.3,1.6025]
[1743684465313,5.67894,1760.9,1760.3,1.6025]
[1743684465505,1.5123,1761.1,1760.3,1.6025]
[1743684465706,5.67821,1761.2,1760.4,5.68049]
[1743684465909,5.67849,1761.1,1760.3,1.6025]
[1743684466108,5.67862,1761.0,1760.3,1.6025]
[1743684466628,5.67972,1760.7,1760.1,0.05]
[1743684466793,5.67885,1761.0,1760.1,0.05]
[1743684466997,5.67809,1761.2,1760.1,0.05]
[1743684467221,5.67762,1761.3,1760.2,0.05680752]
[1743684467430,5.67875,1761.0,1760.2,5.68099]
[1743684467941,6.2273,1761.4,1760.1,0.05]
[1743684468245,5.6811,1760.3,1760.1,0.05]
[1743684468527,5.68117,1760.2,1760.1,0.05]
[1743684468896,6.23117,1760.2,1760.1,0.05]
[1743684469090,5.68117,1760.2,1760.1,0.05]
[1743684469355,1.5266,1759.8,1759.1,0.05]
[1743684469496,5.6844,1759.2,1759.1,0.05]
[1743684469815,5.6844,1759.2,1758.1,40.931]
[1743684469816,5.68647,1758.6,1758.2,1.6268]
[1743684469994,5.68763,1758.2,1758.1,0.05]
[1743684470195,0.55,1758.9,1758.1,0.05]
[1743684470422,5.68493,1759.1,1758.1,0.10687751]
[1743684470623,5.68535,1759.0,1758.1,5.73795]
[1743684470927,5.68554,1758.9,1758.1,0.05]
[1743684471131,5.6854,1758.9,1758.1,5.73772]
[1743684471334,0.55,1759.4,1758.1,0.05]
[1743684471517,5.68503,1759.1,1758.1,0.05]
[1743684471723,5.68788736,1759.0,1758.2,5.68749]
[1743684472014,5.68788736,1759.0,1758.1,0.05]
[1743684472015,5.68685,1758.5,1758.1,0.05]
[1743684472216,5.6857,1758.8,1758.1,0.05]
[1743684472395,5.68764736,1759.0,1758.1,0.05]
[1743684472601,5.68749,1758.3,1758.1,0.05]
[1743684472808,5.68763,1758.2,1758.1,0.05]
[1743684472996,5.68987,1757.6,1757.1,9.5e-07]
[1743684473201,5.6886,1757.9,1757.1,9.5e-07]
[1743684473450,5.69008,1757.5,1757.1,9.5e-07]
[1743684473757,5.69151,1757.0,1756.1,0.05]
[1743684473925,5.69411,1756.2,1756.1,0.05]
[1743684474235,5.69264,1756.7,1756.1,0.05]
[1743684474408,6.24197,1756.9,1756.1,0.05]
[1743684474737,1.6642,1755.2,1754.6,0.29450218]
[1743684475034,0.55,1755.7,1752.8,5.7e-06]
[1743684475035,3.0,1752.9,1752.8,5.7e-06]
[1743684475366,1.116869,1752.9,1752.8,5.7e-06]
[1743684475631,0.55,1752.9,1752.8,5.7e-06]
[1743684475833,5.70405,1753.2,1752.8,5.7e-06]
[1743684476131,1.5205,1753.3,1752.8,5.7e-06]
[1743684476334,0.1898541,1753.4,1752.8,5.7e-06]
[1743684476500,5.70045,1754.3,1752.9,5.70483]
[1743684476701,5.70045,1754.3,1752.8,5.7e-06]
[1743684476702,5.69992,1754.5,1753.0,1.6586]
[1743684477033,1.5855,1755.2,1753.1,0.05705217]
[1743684477233,1.5855,1754.5,1752.8,5.7e-06]
[1743684477540,0.05,1754.9,1753.2,5.70385]
[1743684477711,5.69815,1755.0,1753.3,0.05701973]
[1743684478033,5.6954,1755.8,1753.5,1.568]
[1743684478236,0.05,1755.9,1753.6,5.70255]
[1743684478439,16.31252185,1754.8,1752.8,5.7e-06]
[1743684478640,57.27352185,1754.8,1752.8,5.7e-06]
[1743684478936,3.0,1754.7,1753.0,5.7045]
[1743684479151,16.31252185,1754.8,1753.4,5.70314]
[1743684479307,3.0,1754.2,1753.1,1.5344]
[1743684479508,5.70353,1753.3,1752.8,5.7e-06]
[1743684479710,8.70404,1753.2,1752.8,5.7e-06]
[1743684479911,5.70306,1753.5,1752.8,5.7e-06]
[1743684480117,5.70711,1752.2,1752.0,0.005]
[1743684480383,0.29473335,1753.4,1752.1,5.875325]
[1743684480532,0.29473335,1753.4,1752.1,0.168135]
[1743684480734,3.0,1753.2,1752.1,1.5738]
[1743684480944,1.6483,1753.7,1752.5,5.70607]
[1743684481147,5.70906,1751.6,1751.5,5.22129841]
[1743684481355,5.71395,1750.1,1750.0,4.33419404]
[1743684481554,1.5111,1750.0,1746.7,32.58868555]
[1743684481847,2.86714975,1751.3,1746.7,32.58868555]
[1743684481848,0.0973335,1749.9,1748.6,0.1]
[1743684482049,3.0,1751.6,1749.8,1.5111]
[1743684482350,5.70597,1752.6,1750.3,5.81321]
[1743684482654,5.70548,1752.7,1750.5,5.71239]
[1743684482814,5.7045,1753.0,1750.6,0.1]
[1743684483014,5.77173259,1753.1,1752.3,5.70677]
[1743684483218,3.62307978,1753.4,1751.9,41.096]
[1743684483446,5.74846,1754.9,1752.3,1.5425]
[1743684483749,0.05,1754.9,1754.5,5.6995]
[1743684483927,1.5165,1755.8,1755.2,5.69726]
[1743684484125,0.80862609,1756.0,1755.4,5.69664]
[1743684484336,0.80862609,1756.0,1754.7,5.69888]
[1743684484554,0.80862609,1756.0,1755.0,5.69774]
[1743684484719,1e-05,1755.9,1755.8,5.6954]